bitfinex-derivatives/quotes_BTCF0:USTF0_20250127
["timestamp","ask_amount","ask_price","bid_price","bid_amount"]
[1738018025464,0.557147,101890.0,101880.0,0.196358]
[1738018026060,0.62847083,101890.0,101880.0,0.196358]
[1738018026361,0.66027083,101890.0,101880.0,0.196358]
[1738018026661,0.72617083,101890.0,101880.0,0.196358]
[1738018027164,0.69247083,101890.0,101880.0,0.196358]
[1738018027859,0.62847083,101890.0,101880.0,0.196358]
[1738018028664,0.56771052,101890.0,101880.0,0.196358]
[1738018028853,0.62847083,101890.0,101880.0,0.196358]
[1738018029665,0.42156031,101890.0,101880.0,0.196358]
[1738018029865,0.3608,101890.0,101880.0,0.25711831]
[1738018030160,0.35855811,101900.0,101890.0,0.196338]
[1738018030161,0.6585978,101900.0,101890.0,0.196338]
[1738018030360,0.2977978,101900.0,101890.0,1.764438]
[1738018030666,0.35855811,101900.0,101890.0,1.764438]
[1738018030861,0.16223311,101900.0,101890.0,1.764438]
[1738018031052,0.16223311,101900.0,101890.0,1.798538]
[1738018031255,0.1014728,101900.0,101890.0,1.85929831]
[1738018031455,0.1014728,101900.0,101890.0,2.159338]
[1738018032161,0.16223311,101900.0,101890.0,2.159338]
[1738018032760,0.1014728,101900.0,101890.0,2.159338]
[1738018032959,0.1014728,101900.0,101890.0,2.22009831]
[1738018033161,0.1014728,101900.0,101890.0,2.22109831]
[1738018033658,0.1014728,101900.0,101890.0,2.160338]
[1738018033960,0.1014728,101900.0,101890.0,2.22109831]
[1738018034762,0.1014728,101900.0,101890.0,2.160338]
[1738018035267,0.1014728,101900.0,101890.0,2.17100271]
[1738018037770,0.1014728,101900.0,101890.0,2.23176302]
[1738018037969,0.1014728,101900.0,101890.0,0.73176302]
[1738018038368,0.1014728,101900.0,101890.0,2.23176302]
[1738018040775,0.20690294,101910.0,101900.0,0.196319]
[1738018041078,0.20690294,101910.0,101900.0,0.61773485]
[1738018041261,0.196308,101910.0,101900.0,0.61773485]
[1738018041458,0.61785131,101920.0,101910.0,0.1963]
[1738018042277,0.61785131,101920.0,101910.0,0.2632]
[1738018043572,0.61785131,101920.0,101910.0,0.2642]
[1738018044274,0.61785131,101920.0,101910.0,1.7642]
[1738018044785,0.62849539,101920.0,101910.0,1.7642]
[1738018045577,0.56773508,101920.0,101910.0,1.7642]
[1738018045779,0.62849539,101920.0,101910.0,1.7642]
[1738018046271,0.196291,101920.0,101910.0,1.82496031]
[1738018046475,0.42156031,101930.0,101910.0,1.98946031]
[1738018046675,0.61783231,101930.0,101920.0,0.196281]
[1738018047068,0.196281,101920.0,101910.0,1.76419]
[1738018047268,0.65004131,101920.0,101910.0,1.69729]
[1738018047567,0.589281,101920.0,101910.0,1.69729]
[1738018047771,0.65004131,101920.0,101910.0,0.19629]
[1738018048175,0.1963,101910.0,101900.0,0.73356508]
[1738018048379,0.1963,101910.0,101900.0,2.23356508]
[1738018048770,0.1963,101910.0,101900.0,1.87276508]
[1738018048971,0.5571,101910.0,101900.0,1.87276508]
[1738018050277,0.5571,101910.0,101900.0,2.29432539]
[1738018050278,0.1963,101910.0,101900.0,2.29432539]
[1738018050785,0.1963,101910.0,101900.0,2.23356508]
[1738018051988,0.37148366,101930.0,101900.0,2.1587777]
[1738018052182,0.42156031,101940.0,101910.0,0.48576031]
[1738018052183,0.52116031,101940.0,101910.0,0.48576031]
[1738018052384,0.557063,101930.0,101920.0,0.196272]
[1738018052579,0.61782331,101930.0,101920.0,0.196272]
[1738018052779,0.25702331,101930.0,101920.0,0.196272]
[1738018053188,0.61782331,101930.0,101920.0,0.196272]
[1738018053390,0.25702331,101930.0,101920.0,0.196272]
[1738018053690,0.196263,101930.0,101920.0,0.196272]
[1738018053884,0.196263,101930.0,101920.0,1.697272]
[1738018054081,0.557063,101930.0,101920.0,1.697272]
[1738018055189,0.196263,101930.0,101920.0,1.697272]
[1738018056384,0.196263,101930.0,101920.0,1.70835853]
[1738018057488,0.557063,101930.0,101920.0,1.70835853]
[1738018057691,0.196263,101930.0,101920.0,1.70835853]
[1738018057885,0.557063,101930.0,101920.0,1.70835853]
[1738018058786,0.53216778,101940.0,101920.0,0.20835853]
[1738018058993,0.72842178,101940.0,101930.0,0.196261]
[1738018060584,0.72842178,101940.0,101930.0,0.197261]
[1738018064091,0.72842178,101940.0,101930.0,0.196261]
[1738018064391,0.72842178,101940.0,101930.0,0.197261]
[1738018065793,0.66766147,101940.0,101930.0,0.196261]
[1738018065989,0.66766147,101940.0,101930.0,0.197261]
[1738018066198,0.72842178,101940.0,101930.0,0.197261]
[1738018066691,0.72842178,101940.0,101930.0,1.697261]
[1738018067097,0.60086147,101940.0,101930.0,1.697261]
[1738018067498,0.66162178,101940.0,101930.0,1.697261]
[1738018067797,0.56806147,101940.0,101930.0,1.697261]
[1738018067999,0.20726147,101940.0,101930.0,1.761361]
[1738018068292,0.01100747,101940.0,101930.0,1.82212131]
[1738018068488,0.65256551,101950.0,101940.0,0.196242]
[1738018069990,0.65256551,101950.0,101940.0,0.197242]
[1738018070186,0.3622722,101950.0,101940.0,0.25800231]
[1738018070590,0.3622722,101950.0,101940.0,0.29010231]
[1738018071293,0.3608,101950.0,101940.0,0.29010231]
[1738018071491,0.557011,101960.0,101950.0,0.196223]
[1738018071691,0.557011,101960.0,101950.0,0.259623]
[1738018071897,0.557011,101960.0,101950.0,0.32038331]
[1738018072299,0.56758435,101960.0,101950.0,1.82038331]
[1738018072795,0.28835131,101970.0,101950.0,1.98496031]
[1738018073000,0.28835131,101970.0,101960.0,0.196204]
[1738018073499,0.28835131,101970.0,101960.0,0.557004]
[1738018073801,0.32045131,101970.0,101960.0,0.557004]
[1738018074902,0.32045131,101970.0,101960.0,0.558004]
[1738018075293,0.196191,101970.0,101960.0,0.61876431]
[1738018075496,0.196191,101970.0,101960.0,0.65276431]
[1738018077800,0.196191,101970.0,101960.0,2.15276431]
[1738018078706,0.196191,101970.0,101960.0,2.16304466]
[1738018079200,0.196191,101970.0,101960.0,2.10228435]
[1738018079596,0.25695131,101970.0,101960.0,2.10228435]
[1738018079802,0.25695131,101970.0,101960.0,0.56828435]
[1738018080005,0.35155131,101970.0,101960.0,0.56828435]
[1738018080298,0.15536031,101970.0,101950.0,0.620416]
[1738018080507,0.196204,101960.0,101950.0,0.68117631]
[1738018080895,0.196204,101960.0,101950.0,0.65007631]
[1738018081096,0.196204,101960.0,101950.0,0.557016]
[1738018081296,0.196204,101960.0,101950.0,0.196216]
[1738018081702,0.196204,101960.0,101950.0,0.197216]
[1738018081905,0.196204,101960.0,101950.0,0.20771395]
[1738018082107,0.25696431,101960.0,101950.0,0.01149795]
[1738018082307,0.196204,101960.0,101950.0,0.01149795]
[1738018082502,0.196204,101960.0,101950.0,0.20772095]
[1738018083404,0.196204,101960.0,101950.0,0.56852095]
[1738018083605,0.25696431,101960.0,101950.0,0.56852095]
[1738018084106,0.67852462,101960.0,101950.0,0.01149795]
[1738018085497,0.61776431,101960.0,101950.0,0.20772095]
[1738018085699,0.25696431,101960.0,101950.0,1.70772095]
[1738018087410,0.26731666,101960.0,101950.0,1.70772095]
[1738018088205,0.20655635,101960.0,101950.0,1.70772095]
[1738018088806,0.20655635,101960.0,101950.0,1.76848126]
[1738018089104,0.196204,101960.0,101950.0,2.16298126]
[1738018089312,0.196204,101960.0,101950.0,2.10222095]
[1738018089814,0.25696431,101960.0,101950.0,2.10222095]
[1738018090706,0.196188,101970.0,101960.0,0.196194]
[1738018091016,0.25694831,101970.0,101960.0,0.263494]
[1738018091309,0.06076031,101970.0,101960.0,0.624294]
[1738018092106,0.06076031,101970.0,101960.0,0.625294]
[1738018092306,0.62824192,101980.0,101960.0,0.4291]
[1738018092507,0.62824192,101980.0,101970.0,0.196184]
[1738018093213,0.62824192,101980.0,101970.0,1.696184]
[1738018094007,0.62824192,101980.0,101970.0,1.697184]
[1738018094717,0.68900223,101980.0,101970.0,1.697184]
[1738018094907,0.62824192,101980.0,101970.0,1.697184]
[1738018095318,0.68900223,101980.0,101970.0,1.697184]
[1738018095909,0.62824192,101980.0,101970.0,1.697184]
[1738018097311,0.68900223,101980.0,101970.0,1.697184]
[1738018098116,0.68900223,101980.0,101970.0,0.197184]
[1738018099821,0.62824192,101980.0,101970.0,0.197184]
[1738018102618,0.62824192,101980.0,101970.0,0.228784]
[1738018103421,0.62824192,101980.0,101970.0,0.23936564]
[1738018104718,0.68900223,101980.0,101970.0,0.23936564]
[1738018104922,0.68900223,101980.0,101970.0,0.20776564]
[1738018106013,0.32820223,101980.0,101970.0,0.56856564]
[1738018106217,0.26744192,101980.0,101970.0,0.56856564]
[1738018108815,0.26744192,101980.0,101970.0,0.60116564]
[1738018110126,0.06076031,101980.0,101970.0,0.60116564]
[1738018110716,0.06076031,101980.0,101970.0,2.10116564]
[1738018116529,0.06076031,101980.0,101970.0,0.60116564]
[1738018118825,0.06076031,101980.0,101970.0,0.56856564]
[1738018123632,0.30246113,101990.0,101970.0,0.37238164]
[1738018123831,0.24170082,101990.0,101980.0,0.589265]
[1738018124038,0.30246113,101990.0,101980.0,0.228465]
[1738018124333,0.30246113,101990.0,101980.0,1.728465]
[1738018125633,0.30246113,101990.0,101980.0,0.228465]
[1738018126241,0.30246113,101990.0,101980.0,1.728465]
[1738018127042,0.30246113,101990.0,101980.0,0.229465]
[1738018127432,0.30246113,101990.0,101980.0,1.729465]
[1738018127632,0.30246113,101990.0,101980.0,0.229465]
[1738018129439,0.30246113,101990.0,101980.0,0.197165]
[1738018129639,0.36876113,101990.0,101980.0,0.197165]
[1738018143558,0.26886113,101990.0,101980.0,0.197165]
[1738018143761,0.26886113,101990.0,101980.0,0.291265]
[1738018144063,0.26886113,101990.0,101980.0,1.791265]
[1738018146064,0.26886113,101990.0,101980.0,0.291265]
[1738018146660,0.26886113,101990.0,101980.0,1.791265]
[1738018147061,0.26886113,101990.0,101980.0,2.152065]
[1738018147250,0.26886113,101990.0,101980.0,0.291265]
[1738018147451,0.26886113,101990.0,101980.0,0.652065]
[1738018147852,0.26886113,101990.0,101980.0,0.621665]
[1738018151857,0.26886113,101990.0,101980.0,0.260865]
[1738018155473,0.26886113,101990.0,101980.0,0.621665]
[1738018156168,0.26886113,101990.0,101980.0,0.260865]
[1738018156865,0.26886113,101990.0,101980.0,0.621665]
[1738018157561,0.26886113,101990.0,101980.0,0.260865]
[1738018157767,0.20810082,101990.0,101980.0,0.260865]
[1738018158269,0.26886113,101990.0,101980.0,0.260865]
[1738018158462,0.26886113,101990.0,101980.0,0.227465]
[1738018159360,0.26886113,101990.0,101980.0,0.197165]
[1738018160960,0.20810082,101990.0,101980.0,0.557965]
[1738018161166,0.20810082,101990.0,101980.0,0.197165]
[1738018161670,0.20810082,101990.0,101980.0,0.557965]
[1738018163367,0.26886113,101990.0,101980.0,0.557965]
[1738018165374,0.26886113,101990.0,101980.0,0.001]
[1738018165565,0.32962144,101990.0,101980.0,0.001]
[1738018167068,0.69042144,101990.0,101980.0,0.001]
[1738018172673,0.69042144,101990.0,101980.0,0.197165]
[1738018174179,0.62966113,101990.0,101980.0,0.197165]
[1738018174379,0.62966113,101990.0,101980.0,0.262265]
[1738018174577,0.69042144,101990.0,101980.0,0.262265]
[1738018174780,0.62966113,101990.0,101980.0,0.262265]
[1738018175373,0.26886113,101990.0,101980.0,0.262265]
[1738018179473,0.26886113,101990.0,101980.0,0.623065]
[1738018180979,0.26886113,101990.0,101980.0,0.557965]
[1738018182090,0.26886113,101990.0,101980.0,0.56831036]
[1738018182589,0.62966113,101990.0,101980.0,0.23941036]
[1738018186488,0.62966113,101990.0,101980.0,0.26971036]
[1738018187094,0.57966113,101990.0,101980.0,0.26971036]
[1738018189890,0.57966113,101990.0,101980.0,1.76971036]
[1738018190488,0.56918383,101990.0,101980.0,1.76971036]
[1738018192295,0.20838383,101990.0,101980.0,1.76971036]
[1738018192481,0.20838383,101990.0,101980.0,2.13051036]
[1738018193088,0.20838383,101990.0,101980.0,1.76971036]
[1738018193286,0.20838383,101990.0,101980.0,2.13051036]
[1738018193482,0.20838383,101990.0,101980.0,0.26971036]
[1738018194189,0.20838383,101990.0,101980.0,1.76971036]
[1738018194588,0.20838383,101990.0,101980.0,2.13051036]
[1738018195598,0.06076031,101990.0,101980.0,2.13051036]
[1738018195900,0.06076031,101990.0,101980.0,2.17954936]
[1738018196089,0.36716424,102000.0,101990.0,0.196146]
[1738018196284,0.42792455,102000.0,101990.0,0.589646]
[1738018196684,0.17102624,102000.0,101990.0,0.589646]
[1738018197198,0.16076031,102000.0,101990.0,0.589646]
[1738018197897,0.35688731,102000.0,101990.0,0.228846]
[1738018198291,0.35688731,102000.0,101990.0,0.229846]
[1738018198691,0.35688731,102000.0,101990.0,0.590646]
[1738018208000,0.35688731,102000.0,101990.0,0.557946]
[1738018215002,0.41764762,102000.0,101990.0,0.557946]
[1738018215603,0.35688731,102000.0,101990.0,0.557946]
[1738018216109,0.41764762,102000.0,101990.0,0.557946]
[1738018216311,0.35688731,102000.0,101990.0,0.557946]
[1738018218527,0.41764762,102000.0,101990.0,0.001]
[1738018219820,0.77844762,102000.0,101990.0,0.001]
[1738018220328,0.78846693,102000.0,101990.0,0.001]
[1738018221214,0.84922724,102000.0,101990.0,0.001]
[1738018221731,0.196146,101990.0,101980.0,0.00014774]
[1738018221933,0.77426662,101990.0,101980.0,0.00014774]
[1738018226130,0.83502693,101990.0,101980.0,7.4e-07]
[1738018226330,0.83502693,101990.0,101970.0,0.27630934]
[1738018226331,0.196165,101980.0,101970.0,0.27630934]
[1738018226632,0.73924593,101980.0,101970.0,0.27630934]
[1738018227119,0.54308093,101980.0,101960.0,0.23523105]
[1738018227321,0.77530462,101970.0,101960.0,0.23523105]
[1738018227522,0.77530462,101970.0,101960.0,0.23537879]
[1738018227835,0.77530462,101970.0,101960.0,0.22587879]
[1738018228133,0.73606493,101970.0,101960.0,0.40092965]
[1738018228927,0.81538493,101970.0,101960.0,0.40092965]
[1738018229328,0.81538493,101970.0,101960.0,0.40192965]
[1738018229529,0.81538493,101970.0,101960.0,0.40292965]
[1738018230329,0.87614524,101970.0,101960.0,0.40292965]
[1738018230535,0.81538493,101970.0,101960.0,0.40292965]
[1738018231435,0.84838493,101970.0,101960.0,0.40292965]
[1738018231731,1.01296124,101970.0,101940.0,1.5]
[1738018232034,0.89217662,101950.0,101920.0,0.3928]
[1738018232231,0.25702131,101930.0,101920.0,0.3928]
[1738018232430,0.31778162,101930.0,101920.0,0.032]
[1738018232639,0.67858162,101930.0,101920.0,0.032]
[1738018234133,0.67858162,101930.0,101920.0,0.036]
[1738018234622,0.64957803,101930.0,101920.0,0.004]
[1738018235028,0.68287803,101930.0,101920.0,0.006]
[1738018240234,0.69321419,101930.0,101920.0,0.006]
[1738018240731,0.78573122,101930.0,101920.0,0.006]
[1738018240932,0.78573122,101930.0,101910.0,0.00014774]
[1738018240933,0.196281,101920.0,101910.0,0.00014774]
[1738018241136,0.67979803,101920.0,101910.0,0.00014774]
[1738018242441,0.67979803,101920.0,101910.0,0.00214774]
[1738018242837,0.77231506,101920.0,101910.0,0.00214774]
[1738018243540,0.77231506,101920.0,101910.0,0.00514774]
[1738018245043,0.77431506,101920.0,101910.0,0.00314774]
[1738018245933,0.78031506,101920.0,101910.0,0.00014774]
[1738018249335,0.75011506,101920.0,101910.0,0.00014774]
[1738018249545,0.82943506,101920.0,101910.0,0.00014774]
[1738018249844,0.73691803,101920.0,101910.0,0.03064774]
[1738018250239,0.73691803,101920.0,101910.0,0.06224774]
[1738018254140,0.82943506,101920.0,101910.0,0.06224774]
[1738018254645,0.204281,101920.0,101910.0,0.61934774]
[1738018254838,0.19699803,101920.0,101910.0,0.61934774]
[1738018255242,0.29912519,101930.0,101910.0,0.42304774]
[1738018255542,0.09266477,101940.0,101930.0,0.196261]
[1738018255543,0.19639874,101940.0,101930.0,0.196261]
[1738018255740,0.28891577,101940.0,101930.0,0.196261]
[1738018256149,0.28891577,101940.0,101930.0,0.557061]
[1738018256338,0.29874864,101940.0,101930.0,0.557061]
[1738018256542,0.28891577,101940.0,101930.0,0.557061]
[1738018257049,0.09266477,101940.0,101930.0,2.057061]
[1738018257840,0.09866477,101940.0,101930.0,2.057061]
[1738018258747,0.09866477,101940.0,101930.0,2.088061]
[1738018258748,0.00614774,101940.0,101930.0,2.088061]
[1738018259451,0.00614774,101940.0,101930.0,0.588061]
[1738018260648,0.00014774,101940.0,101930.0,0.588061]
[1738018260951,0.2902205,101950.0,101940.0,0.196242]
[1738018261144,0.28874803,101950.0,101940.0,0.620342]
[1738018261643,0.29887391,101950.0,101940.0,0.620342]
[1738018262043,0.09251703,101950.0,101940.0,0.620342]
[1738018262239,0.09351703,101950.0,101940.0,0.620342]
[1738018263344,0.09451703,101950.0,101940.0,0.620342]
[1738018264051,0.002,101950.0,101940.0,0.620342]
[1738018267744,0.002,101950.0,101940.0,2.120342]
[1738018270254,0.002,101950.0,101940.0,2.21285903]
[1738018272754,0.002,101950.0,101940.0,0.71285903]
[1738018273356,0.00014774,101960.0,101940.0,2.01661703]
[1738018273656,0.00014774,101960.0,101950.0,0.64954003]
[1738018274555,0.00114774,101960.0,101950.0,0.64954003]
[1738018274945,0.00214774,101960.0,101950.0,0.64954003]
[1738018276255,0.00314774,101960.0,101950.0,0.64954003]
[1738018276642,0.00214774,101960.0,101950.0,0.65054003]
[1738018278748,0.00214774,101960.0,101950.0,0.558023]
[1738018278951,0.19835174,101960.0,101950.0,0.558023]
[1738018280258,0.26245174,101960.0,101950.0,0.558023]
[1738018280750,0.26245174,101960.0,101950.0,0.56814097]
[1738018286355,0.26245174,101960.0,101950.0,0.558023]
[1738018288450,0.35496877,101960.0,101950.0,0.3618]
[1738018288653,0.71576877,101960.0,101950.0,0.001]
[1738018289957,0.00214774,101960.0,101950.0,1.01134003]
[1738018290158,0.0955,101970.0,101960.0,0.196204]
[1738018290363,0.0955,101970.0,101960.0,0.557004]
[1738018291255,0.0955,101970.0,101960.0,0.558004]
[1738018292952,0.0955,101970.0,101960.0,0.559004]
[1738018293455,0.0955,101970.0,101960.0,0.558004]
[1738018293662,0.0955,101970.0,101960.0,0.559004]
[1738018294564,0.0955,101970.0,101960.0,2.059004]
[1738018296161,0.0955,101970.0,101960.0,0.559004]
[1738018299860,0.291684,101970.0,101960.0,0.559004]
[1738018300864,0.0955,101970.0,101960.0,0.559004]
[1738018302370,0.291684,101970.0,101960.0,0.559004]
[1738018306666,0.0638,101970.0,101960.0,0.559004]
[1738018306865,0.259984,101970.0,101960.0,0.559004]
[1738018310666,0.32062728,101970.0,101960.0,0.559004]
[1738018313564,0.32062728,101970.0,101960.0,0.002]
[1738018314766,0.32062728,101970.0,101960.0,0.001]
[1738018314972,0.196204,101960.0,101950.0,2.06721413]
[1738018315173,0.28764728,101960.0,101950.0,2.06721413]
[1738018316070,0.28764728,101960.0,101950.0,2.05715774]
[1738018316273,0.34829056,101960.0,101950.0,1.86094774]
[1738018316863,0.34829056,101960.0,101950.0,0.36094774]
[1738018317868,0.70909056,101960.0,101950.0,0.00014774]
[1738018319966,0.71913766,101960.0,101950.0,0.00014774]
[1738018320675,0.69030744,101960.0,101950.0,0.00014774]
[1738018323579,0.69030744,101960.0,101950.0,1e-08]
[1738018327679,0.79410344,101960.0,101920.0,0.196273]
[1738018327879,0.28871734,101930.0,101920.0,0.196273]
[1738018328278,0.32001734,101930.0,101920.0,1.696273]
[1738018328670,0.32001734,101930.0,101920.0,1.8608]
[1738018328871,0.35171734,101930.0,101920.0,1.5]
[1738018329072,0.35171734,101930.0,101920.0,1.504]
[1738018329477,0.35171734,101930.0,101920.0,0.004]
[1738018329884,0.35171734,101930.0,101920.0,0.007]
[1738018330787,0.71251734,101930.0,101920.0,0.007]
[1738018332978,0.71251734,101930.0,101920.0,0.004]
[1738018333179,0.71251734,101930.0,101920.0,0.007]
[1738018333479,0.80497368,101930.0,101920.0,0.007]
[1738018333682,0.196281,101920.0,101910.0,0.00014774]
[1738018333883,0.68133734,101920.0,101910.0,0.00014774]
[1738018334778,0.67833734,101920.0,101910.0,0.00014774]
[1738018335583,0.68233734,101920.0,101910.0,0.00014774]
[1738018336093,0.68333734,101920.0,101910.0,0.00014774]
[1738018338592,0.77579368,101920.0,101910.0,0.00014774]
[1738018339893,0.77579368,101920.0,101910.0,1e-08]
[1738018341595,0.196338,101890.0,101870.0,0.3608]
[1738018341891,0.196377,101870.0,101860.0,0.00147234]
[1738018342399,0.64963334,101870.0,101860.0,0.00147234]
[1738018342689,0.196396,101860.0,101850.0,0.23345803]
[1738018342895,0.28585234,101860.0,101850.0,0.23360577]
[1738018343088,0.28385234,101860.0,101850.0,0.23360577]
[1738018343695,0.64465234,101860.0,101850.0,0.23360577]
[1738018343999,0.64465234,101860.0,101850.0,0.23560577]
[1738018344691,0.73710868,101860.0,101850.0,0.23560577]
[1738018344894,0.62479268,101860.0,101840.0,0.29211334]
[1738018345092,0.83552868,101850.0,101840.0,0.29211334]
[1738018345391,0.90960868,101850.0,101840.0,0.29211334]
[1738018345598,0.91460868,101850.0,101840.0,0.29211334]
[1738018346198,0.91460868,101850.0,101840.0,0.29411334]
[1738018346498,0.91460868,101850.0,101840.0,0.29611334]
[1738018347396,0.91460868,101850.0,101840.0,0.004]
[1738018348897,0.91460868,101850.0,101830.0,0.00014774]
[1738018348898,0.196435,101840.0,101830.0,0.00014774]
[1738018349101,0.64969134,101840.0,101830.0,0.00014774]
[1738018350100,0.64969134,101840.0,101830.0,0.00314774]
[1738018353399,0.36797134,101840.0,101830.0,0.00314774]
[1738018353586,0.36797134,101840.0,101830.0,0.06864774]
[1738018353787,0.28889134,101840.0,101830.0,0.06864774]
[1738018353986,0.36797134,101840.0,101830.0,0.06864774]
[1738018354404,0.28889134,101840.0,101830.0,0.06864774]
[1738018354693,0.36797134,101840.0,101830.0,0.06864774]
[1738018355493,0.28889134,101840.0,101830.0,0.06864774]
[1738018355696,0.36797134,101840.0,101830.0,0.65810174]
[1738018356396,0.28889134,101840.0,101830.0,0.65810174]
[1738018357401,0.09245634,101840.0,101830.0,0.65810174]
[1738018357600,0.28889134,101840.0,101830.0,0.65810174]
[1738018358402,0.28889134,101840.0,101830.0,0.65610174]
[1738018358604,0.09345634,101840.0,101830.0,0.65610174]
[1738018358794,0.09345634,101840.0,101830.0,0.65510174]
[1738018358995,0.09345634,101840.0,101830.0,2.15510174]
[1738018359699,0.001,101840.0,101830.0,2.15510174]
[1738018360499,0.28900308,101860.0,101830.0,2.00775974]
[1738018360701,0.19654674,101860.0,101850.0,0.557215]
[1738018361399,0.20638133,101860.0,101850.0,0.557215]
[1738018362099,0.29883767,101860.0,101850.0,0.196415]
[1738018362291,0.29983767,101860.0,101850.0,0.196415]
[1738018362711,0.30183767,101860.0,101850.0,0.196415]
[1738018362900,0.30883767,101860.0,101850.0,0.197415]
[1738018364002,0.30883767,101860.0,101850.0,0.001]
[1738018367098,0.66963767,101860.0,101850.0,0.001]
[1738018367309,0.30883767,101860.0,101850.0,0.001]
[1738018367608,0.66963767,101860.0,101850.0,0.001]
[1738018368300,0.30883767,101860.0,101850.0,0.001]
[1738018369010,0.66963767,101860.0,101850.0,0.001]
[1738018369806,0.30883767,101860.0,101850.0,0.001]
[1738018370312,0.30883767,101860.0,101850.0,0.197415]
[1738018371112,0.30883767,101860.0,101850.0,0.001]
[1738018371601,0.66963767,101860.0,101850.0,0.001]
[1738018371803,0.30883767,101860.0,101850.0,0.001]
[1738018372411,0.66963767,101860.0,101850.0,0.001]
[1738018372716,0.30883767,101860.0,101850.0,0.001]
[1738018373317,0.33993767,101860.0,101850.0,0.001]
[1738018373910,0.70073767,101860.0,101850.0,0.001]
[1738018374107,0.33993767,101860.0,101850.0,0.001]
[1738018374508,0.33993767,101860.0,101850.0,0.17530812]
[1738018374808,0.70073767,101860.0,101850.0,0.17530812]
[1738018375911,0.33993767,101860.0,101850.0,0.17530812]
[1738018376506,0.70073767,101860.0,101850.0,0.17530812]
[1738018377014,0.33993767,101860.0,101850.0,0.17530812]
[1738018377704,0.70073767,101860.0,101850.0,0.001]
[1738018378605,0.33993767,101860.0,101850.0,0.001]
[1738018379405,0.70073767,101860.0,101850.0,0.001]
[1738018384215,0.79319401,101860.0,101850.0,0.001]
[1738018384516,0.70073767,101860.0,101850.0,0.001]
[1738018386211,0.79319401,101860.0,101850.0,0.001]
[1738018386809,0.70073767,101860.0,101850.0,0.001]
[1738018388419,0.79319401,101860.0,101850.0,0.001]
[1738018391411,0.196435,101840.0,101830.0,0.17445586]
[1738018391712,0.28889134,101840.0,101830.0,0.17445586]
[1738018392021,0.32099134,101840.0,101830.0,0.17445586]
[1738018392915,0.68179134,101840.0,101830.0,0.17445586]
[1738018393128,0.68279134,101840.0,101830.0,0.17445586]
[1738018393315,0.32199134,101840.0,101830.0,0.17445586]
[1738018393510,0.68279134,101840.0,101830.0,0.17445586]
[1738018394417,0.68279134,101840.0,101830.0,0.00014774]
[1738018397819,0.69270027,101840.0,101830.0,0.00014774]
[1738018401723,0.77166027,101840.0,101830.0,0.00014774]
[1738018402427,0.196473,101820.0,101810.0,0.79706724]
[1738018402616,0.28892934,101820.0,101810.0,0.79706724]
[1738018402820,0.28892934,101820.0,101810.0,2.29706724]
[1738018403727,0.28892934,101820.0,101810.0,2.29806724]
[1738018404117,0.28892934,101820.0,101810.0,2.30006724]
[1738018404318,0.28892934,101820.0,101810.0,2.12575912]
[1738018405526,0.31922934,101820.0,101810.0,2.12575912]
[1738018405725,0.31922934,101820.0,101810.0,0.42927312]
[1738018405920,0.31922934,101820.0,101810.0,0.003]
[1738018405921,0.41168568,101820.0,101810.0,0.003]
[1738018406121,0.77248568,101820.0,101810.0,0.003]
[1738018407528,0.7824086,101820.0,101810.0,0.003]
[1738018410229,0.7824086,101820.0,101810.0,0.002]
[1738018410230,0.8315276,101820.0,101810.0,0.002]
[1738018410423,0.196492,101810.0,101800.0,0.10014774]
[1738018410728,0.79236834,101810.0,101800.0,0.10014774]
[1738018412329,0.79236834,101810.0,101800.0,0.10114774]
[1738018412526,0.71344834,101810.0,101800.0,0.10114774]
[1738018412728,0.79236834,101810.0,101800.0,0.10114774]
[1738018413727,0.79236834,101810.0,101800.0,0.10314774]
[1738018414830,0.88482468,101810.0,101800.0,0.10314774]
[1738018415130,0.79236834,101810.0,101800.0,0.10314774]
[1738018415630,0.88482468,101810.0,101800.0,0.10314774]
[1738018416231,0.88482468,101810.0,101800.0,0.0818808]
[1738018417936,0.196531,101790.0,101780.0,0.3608]
[1738018418225,0.38144368,101790.0,101780.0,0.3608]
[1738018419132,0.19655,101780.0,101770.0,0.64920574]
[1738018419337,0.28900634,101780.0,101770.0,0.64920574]
[1738018419634,0.28800634,101780.0,101770.0,0.64920574]
[1738018420122,0.28800634,101780.0,101770.0,0.45264774]
[1738018420123,0.28600634,101780.0,101770.0,0.45264774]
[1738018420319,0.28600634,101780.0,101770.0,0.06254774]
[1738018420522,0.64680634,101780.0,101770.0,0.00114774]
[1738018420723,0.67840634,101780.0,101770.0,0.00314774]
[1738018421427,0.67840634,101780.0,101770.0,0.00214774]
[1738018422532,0.707726,101780.0,101770.0,0.00214774]
[1738018424319,0.786646,101780.0,101770.0,0.00214774]
[1738018424520,0.75765618,101780.0,101770.0,0.00214774]
[1738018424726,0.76773992,101780.0,101770.0,0.00214774]
[1738018427237,0.76773992,101780.0,101770.0,0.00229219]
[1738018429234,0.68881992,101780.0,101770.0,0.00229219]
[1738018429539,0.65721992,101780.0,101770.0,0.06499219]
[1738018429838,0.65721992,101780.0,101770.0,1.56499219]
[1738018430037,0.65721992,101780.0,101770.0,0.06499219]
[1738018430433,0.65721992,101780.0,101770.0,0.06399219]
[1738018430741,0.65921992,101780.0,101770.0,0.06399219]
[1738018439146,0.29841992,101780.0,101770.0,0.06399219]
[1738018444645,0.29841992,101780.0,101770.0,0.62136119]
[1738018444842,0.29841992,101780.0,101770.0,0.65186119]
[1738018445256,0.29841992,101780.0,101770.0,2.15186119]
[1738018445449,0.10486992,101780.0,101770.0,2.15186119]
[1738018446153,0.10486992,101780.0,101770.0,2.32616931]
[1738018446154,0.01208374,101780.0,101770.0,2.32616931]
[1738018446353,0.28932918,101790.0,101780.0,0.19655]
[1738018446654,0.25739975,101790.0,101780.0,0.55735]
[1738018446948,0.26739016,101790.0,101780.0,0.55735]
[1738018447851,0.27239016,101790.0,101780.0,0.55835]
[1738018448346,0.27339016,101790.0,101780.0,0.55835]
[1738018449044,0.07684716,101790.0,101780.0,0.55835]
[1738018449445,0.006,101790.0,101780.0,0.85835]
[1738018450154,0.06685675,101790.0,101780.0,0.85835]
[1738018450354,0.06685675,101790.0,101780.0,0.55835]
[1738018450551,0.006,101790.0,101780.0,0.91920675]
[1738018450755,0.01010363,101800.0,101790.0,0.196531]
[1738018450955,0.01010363,101800.0,101790.0,0.71148775]
[1738018451451,1e-08,101800.0,101790.0,1.01148775]
[1738018452052,0.005,101800.0,101790.0,0.81595675]
[1738018452254,0.25733775,101820.0,101810.0,0.196492]